bitfinex-derivatives/quotes_SOLF0:USTF0_20250624
["timestamp","ask_amount","ask_price","bid_price","bid_amount"]
[1750729874285,36.98,143.56,143.48,40.47890749]
[1750729874891,40.47890749,143.56,143.48,40.47890749]
[1750729875279,43.9406,143.56,143.48,40.47890749]
[1750729875790,43.9406,143.56,143.52,6.9624]
[1750729876790,6.961,143.55,143.51,6.9628]
[1750729877592,6.9615,143.54,143.5,6.9633]
[1750729878184,6.9611,143.55,143.51,6.9629]
[1750729878790,3.49890749,143.54,143.46,36.96]
[1750729878992,3.49890749,143.54,143.45,2.2962]
[1750729878993,3.49890749,143.52,143.45,2.2962]
[1750729879184,36.96,143.52,143.49,6.9636]
[1750729879385,36.96,143.52,143.46,3.49890749]
[1750729879889,36.96,143.52,143.48,6.9641]
[1750729880291,36.96,143.52,143.46,3.49890749]
[1750729881095,36.96,143.52,143.49,6.9635]
[1750729881296,36.96,143.52,143.46,3.49890749]
[1750729881689,36.96,143.52,143.49,6.9636]
[1750729882090,36.96,143.52,143.48,3.49890749]
[1750729882285,43.9211,143.55,143.51,6.9625]
[1750729882495,36.96,143.55,143.47,36.96]
[1750729882691,6.9616,143.54,143.48,3.49890749]
[1750729883083,6.962,143.53,143.48,3.49890749]
[1750729883591,36.96,143.55,143.48,3.49890749]
[1750729884798,6.9618,143.54,143.5,6.9634]
[1750729884995,36.96,143.55,143.48,3.49890749]
[1750729885191,67.52,143.59,143.5,3.49890749]
[1750729885390,71.01890749,143.59,143.52,3.49890749]
[1750729885585,67.52,143.59,143.52,3.49890749]
[1750729885797,71.01890749,143.59,143.52,4.7309]
[1750729886093,3.49890749,143.57,143.49,36.52]
[1750729886295,6.9611,143.55,143.52,6.9624]
[1750729886695,3.49890749,143.57,143.52,6.9624]
[1750729887097,3.49890749,143.57,143.49,3.49890749]
[1750729887497,36.52,143.59,143.53,3.49890749]
[1750729887792,40.01890749,143.59,143.51,3.49890749]
[1750729887997,6.9607,143.56,143.49,3.49890749]
[1750729888190,3.49890749,143.57,143.49,3.49890749]
[1750729888392,71.01890749,143.59,143.51,3.49890749]
[1750729888588,6.9597,143.58,143.51,3.49890749]
[1750729888789,6.9597,143.58,143.54,6.9612]
[1750729888989,6.9597,143.58,143.51,3.49890749]
[1750729889196,67.52,143.59,143.53,3.49890749]
[1750729889701,67.52,143.59,143.53,8.16450749]
[1750729889902,36.52,143.59,143.55,3.49890749]
[1750729890099,36.5,143.62,143.55,3.49890749]
[1750729891295,43.4577,143.62,143.58,6.9592]
[1750729891694,36.5,143.62,143.59,6.9589]
[1750729891901,36.5,143.62,143.55,3.49890749]
[1750729892288,6.9581,143.61,143.57,6.9597]
[1750729892492,36.5,143.62,143.55,3.49890749]
[1750729892896,36.5,143.62,143.57,6.96]
[1750729893091,39.99890749,143.62,143.55,3.49890749]
[1750729893690,6.9582,143.61,143.55,3.49890749]
[1750729893996,36.5,143.62,143.55,3.49890749]
[1750729894190,6.9586,143.6,143.56,6.96]
[1750729894394,36.5,143.62,143.55,3.49890749]
[1750729895096,36.5,143.62,143.59,6.959]
[1750729895298,36.5,143.62,143.57,3.49890749]
[1750729895603,638.28,143.65,143.57,3.49890749]
[1750729896102,36.5,143.65,143.62,6.9572]
[1750729896310,36.5,143.65,143.59,3.49890749]
[1750729898099,36.5,143.65,143.57,3.49890749]
[1750729898504,3.49890749,143.64,143.57,3.49890749]
[1750729898709,5.85340749,143.64,143.56,36.5]
[1750729899204,3.49890749,143.62,143.55,3.49890749]
[1750729899404,36.5,143.61,143.55,3.49890749]
[1750729899997,36.5,143.61,143.53,43.4113]
[1750729899998,3.49890749,143.6,143.53,41.1656]
[1750729900501,6.9592,143.59,143.53,41.1656]
[1750729901006,38.8267,143.61,143.54,3.49890749]
[1750729901201,6.9587,143.6,143.56,6.9602]
[1750729901506,38.8267,143.61,143.54,3.49890749]
[1750729901913,45.7851,143.61,143.57,6.9598]
[1750729902102,38.8267,143.61,143.54,3.49890749]
[1750729902596,36.5,143.61,143.56,3.49890749]
[1750729903208,43.4584,143.61,143.57,6.9597]
[1750729904404,6.9586,143.6,143.56,10.45920749]
[1750729904611,6.9586,143.6,143.56,6.9603]
[1750729905711,43.4583,143.61,143.57,6.96]
[1750729906908,6.9589,143.6,143.56,6.9603]
[1750729908406,6.9589,143.6,143.54,3.49890749]
[1750729908906,36.5,143.61,143.54,3.49890749]
[1750729909304,4.2994,143.64,143.58,6.9592]
[1750729909608,4.2994,143.64,143.56,3.49890749]
[1750729909609,7.79830749,143.64,143.56,3.49890749]
[1750729910210,12.86956751,143.64,143.56,3.49890749]
[1750729910511,6.9585,143.61,143.57,6.9597]
[1750729910707,36.48,143.61,143.54,3.49890749]
[1750729911715,36.48,143.61,143.56,6.9602]
[1750729911716,6.9587,143.6,143.56,6.9602]
[1750729913312,6.9591,143.59,143.56,6.9602]
[1750729913520,34.49890749,143.6,143.52,3.49890749]
[1750729913813,3.49890749,143.58,143.5,39.69890749]
[1750729914113,67.2,143.57,143.5,39.69890749]
[1750729914305,6.9611,143.55,143.5,39.69890749]
[1750729914509,67.2,143.57,143.5,39.69890749]
[1750729914913,6.961,143.55,143.51,6.9626]
[1750729915920,6.9615,143.54,143.51,6.9626]
[1750729916314,6.9615,143.54,143.5,43.1634]
[1750729916511,8.59420725,143.56,143.45,139.415]
[1750729916512,6.9625,143.52,143.46,39.69890749]
[1750729916717,36.2,143.53,143.46,39.69890749]
[1750729916912,36.2,143.53,143.47,6.9647]
[1750729917220,11.15521588,143.52,143.46,36.2]
[1750729917515,6.9638,143.5,143.46,6.965]
[1750729917917,6.9638,143.5,143.44,5.74220749]
[1750729917918,3.49890749,143.52,143.44,5.74220749]
[1750729918113,12.06584646,143.51,143.47,6.9645]
[1750729918318,38.4153,143.53,143.46,3.49890749]
[1750729918714,45.3776,143.53,143.49,6.9636]
[1750729919318,38.4153,143.53,143.49,6.9636]
[1750729919516,6.9625,143.52,143.48,6.9642]
[1750729920218,43.3735159,143.53,143.49,6.9639]
[1750729920419,38.4153,143.53,143.46,3.49890749]
[1750729920621,36.2,143.53,143.48,3.49890749]
[1750729921222,39.71890749,143.56,143.48,3.49890749]
[1750729921421,39.71890749,143.56,143.48,5.87980749]
[1750729921623,36.22,143.56,143.53,6.9618]
[1750729922527,43.1805,143.56,143.53,6.9618]
[1750729922726,36.22,143.56,143.53,6.9618]
[1750729924327,36.22,143.56,143.54,6.9614]
[1750729924728,36.22,143.56,143.53,6.9618]
[1750729925628,43.1806,143.56,143.53,6.9618]
[1750729926529,36.22,143.56,143.53,6.9618]
[1750729926828,36.22,143.56,143.54,6.9614]
[1750729930128,6.9597,143.58,143.54,6.9614]
[1750729930523,6.9597,143.58,143.55,6.9609]
[1750729930930,6.9597,143.58,143.54,6.9613]
[1750729932236,43.1792,143.59,143.55,6.9607]
[1750729933333,36.22,143.59,143.53,3.49890749]
[1750729933535,36.22,143.59,143.55,3.49890749]
[1750729933734,36.22,143.59,143.56,6.9604]
[1750729933932,36.22,143.59,143.55,3.49890749]
[1750729934333,36.22,143.59,143.58,6.9595]
[1750729935340,36.22,143.59,143.57,6.9598]
[1750729936245,36.22,143.59,143.52,2.3456]
[1750729936445,36.22,143.59,143.53,3.49890749]
[1750729936944,36.22,143.59,143.56,6.9602]
[1750729937540,36.22,143.59,143.53,3.49890749]
[1750729938544,43.1791,143.59,143.56,6.9602]
[1750729942349,36.22,143.59,143.56,6.9602]
[1750729943341,36.22,143.59,143.57,6.96]
[1750729943748,36.22,143.59,143.55,3.49890749]
[1750729944646,36.22,143.59,143.58,6.9595]
[1750729944851,45.271,143.62,143.55,3.49890749]
[1750729945546,41.81210749,143.62,143.57,6.9595]
[1750729946745,2.55895213,143.61,143.54,2.4364]
[1750729946948,46.82340674,143.62,143.53,3.49890749]
[1750729947241,8.10795292,143.61,143.54,6.9613]
[1750729947441,3.49890749,143.56,143.47,3.49890749]
[1750729947647,36.02,143.55,143.47,3.49890749]
[1750729948253,6.9617,143.54,143.47,3.49890749]
[1750729948853,6.9617,143.54,143.5,6.963]
[1750729949547,36.02,143.55,143.5,6.963]
[1750729949956,36.02,143.55,143.51,6.9628]
[1750729950144,42.9812,143.55,143.51,6.9628]
[1750729950347,36.02,143.55,143.51,6.9628]
[1750729950954,42.9813,143.55,143.51,6.9628]
[1750729951151,42.9813,143.55,143.52,6.9624]
[1750729951555,6.9615,143.54,143.49,3.49890749]
[1750729952159,6.9615,143.54,143.51,6.9627]
[1750729952456,6.9615,143.54,143.49,3.49890749]
[1750729952657,6.9622,143.53,143.47,3.49890749]
[1750729953254,34.49890749,143.54,143.46,39.51890749]
[1750729953460,31.0,143.53,143.46,39.51890749]
[1750729953762,6.9634,143.5,143.47,6.9646]
[1750729954457,6.9631,143.51,143.47,6.9646]
[1750729954764,31.0,143.53,143.47,6.9646]
[1750729954964,6.9635,143.5,143.46,42.9852]
[1750729955264,6.9635,143.5,143.45,8.03620749]
[1750729955463,42.9831,143.51,143.47,6.9645]
[1750729956069,36.02,143.51,143.48,6.9642]
[1750729957270,36.02,143.51,143.49,6.9638]
[1750729957468,42.983,143.51,143.47,3.49890749]
[1750729958168,36.02,143.51,143.48,6.9641]
[1750729958563,36.02,143.51,143.47,3.49890749]
[1750729958767,31.0,143.53,143.47,3.49890749]
[1750729959469,31.0,143.53,143.49,3.49890749]
[1750729959860,31.0,143.53,143.5,6.9631]
[1750729960060,31.0,143.53,143.49,3.49890749]
[1750729960465,31.0,143.53,143.52,6.9624]
[1750729960665,36.04,143.54,143.52,6.9624]
[1750729960867,36.04,143.54,143.49,3.49890749]
[1750729961069,36.04,143.54,143.51,6.9626]
[1750729961368,36.04,143.54,143.49,3.49890749]
[1750729961974,36.04,143.54,143.53,6.962]
[1750729962671,31.0,143.56,143.51,3.49890749]
[1750729962867,31.0,143.56,143.51,39.53890749]
[1750729963271,31.0,143.56,143.55,6.961]
[1750729963778,31.0,143.56,143.54,6.9614]
[1750729965378,43.0001,143.57,143.53,6.9619]
[1750729967679,6.9606,143.56,143.53,6.9619]
[1750729969782,6.961,143.55,143.52,6.9622]
[1750729971981,43.0001,143.57,143.49,5.81390749]
[1750729972184,43.0001,143.57,143.51,3.49890749]
[1750729972379,36.04,143.57,143.53,3.49890749]
[1750729972581,36.04,143.57,143.55,6.9607]
[1750729972979,36.04,143.57,143.53,3.49890749]
[1750729974776,36.04,143.57,143.52,3.49014947]
[1750729975379,43.0001,143.57,143.53,6.9617]
[1750729976484,6.9606,143.56,143.53,6.9617]
[1750729976685,36.04,143.57,143.52,6.9623]
[1750729978080,6.9607,143.56,143.5,3.49014947]
[1750729978781,6.9611,143.55,143.52,6.9623]
[1750729979789,6.9607,143.56,143.52,6.9623]
[1750729980382,6.961,143.55,143.52,6.9623]
[1750729981388,6.9615,143.54,143.51,6.9627]
[1750729982193,36.04,143.57,143.52,6.9622]
[1750729982393,36.04,143.57,143.5,3.49116874]
[1750729982887,36.04,143.57,143.49,2.315]
[1750729983092,36.04,143.57,143.54,3.49116874]
[1750729983390,36.04,143.57,143.55,6.961]
[1750729983784,6.9598,143.58,143.55,6.961]
[1750729984096,36.0,143.6,143.55,6.961]
[1750729985198,6.9596,143.58,143.55,6.961]
[1750729985394,36.0,143.6,143.56,6.9604]
[1750729985592,36.0,143.6,143.52,39.49116874]
[1750729985896,42.9589,143.6,143.57,6.96]
[1750729986601,36.0,143.6,143.54,3.49116874]
[1750729986991,42.959,143.6,143.54,3.49116874]
[1750729987794,42.959,143.6,143.53,4.5969]
[1750729988095,6.9593,143.59,143.53,8.08806874]
[1750729988601,6.9593,143.59,143.55,6.9607]
[1750729988901,36.0,143.6,143.53,8.08806874]
[1750729989094,16.71304622,143.59,143.51,3.49116874]
[1750729989292,13.22232111,143.58,143.51,3.49116874]
[1750729989498,2.56138959,143.57,143.51,3.49116874]
[1750729989700,5.11098365,143.58,143.51,3.49116874]
[1750729990001,6.9609,143.56,143.51,3.49116874]
[1750729990196,42.9609,143.56,143.51,3.49116874]
[1750729990398,42.9609,143.56,143.49,38.315]
[1750729990596,42.9609,143.56,143.5,3.49116874]
[1750729991200,36.0,143.56,143.5,3.49116874]
[1750729991800,36.0,143.59,143.52,3.49116874]
[1750729992302,36.0,143.59,143.56,6.9602]
[1750729992500,36.0,143.59,143.54,3.49116874]
[1750729992804,36.0,143.59,143.56,6.9602]
[1750729994206,603.6486,143.63,143.56,3.49116874]
[1750729994402,3.48954353,143.61,143.54,3.48954353]
[1750729994597,3.48954353,143.61,143.52,12.827575]
[1750729994598,3.48954353,143.59,143.5,3.48954353]
[1750729994796,6.9609,143.56,143.52,6.9621]
[1750729995000,38.3304,143.58,143.52,6.9621]
[1750729995196,6.04279399,143.57,143.49,41.80454353]
[1750729995403,3.48954353,143.57,143.49,41.80454353]
[1750729995804,6.9607,143.56,143.53,6.962]
[1750729995999,3.48954353,143.57,143.53,6.962]
[1750729997408,10.44984353,143.57,143.53,6.962]
[1750729998406,6.9603,143.57,143.53,6.962]
[1750729999212,48.77964353,143.58,143.54,6.9614]
[1750729999699,48.77964353,143.58,143.55,6.9609]
[1750730000911,48.77964353,143.58,143.54,6.9613]
[1750730001099,6.9602,143.57,143.54,6.9613]
[1750730003607,48.77954353,143.58,143.54,6.9613]
[1750730003803,8.11314488,143.57,143.54,6.9613]
[1750730004008,48.77954353,143.58,143.54,6.9613]
[1750730004208,8.11354576,143.57,143.54,6.9613]
[1750730004409,48.77954353,143.58,143.55,6.961]
[1750730004607,13.20905263,143.57,143.55,6.961]
[1750730004802,36.0,143.58,143.51,3.48954353]
[1750730005015,36.0,143.58,143.57,6.96]
[1750730006814,36.0,143.58,143.56,6.9603]
[1750730007607,36.0,143.58,143.55,6.9607]
[1750730008703,42.9596,143.58,143.55,6.9607]
[1750730009718,36.0,143.58,143.55,6.9607]
[1750730013121,42.9596,143.58,143.55,6.9607]
[1750730013923,42.9596,143.58,143.54,6.9613]
[1750730015215,6.9601,143.57,143.54,6.9613]
[1750730015415,6.9601,143.57,143.53,6.9618]
[1750730015814,36.0,143.58,143.49,51.142575]
[1750730016114,13.21531297,143.57,143.5,3.48954353]
[1750730016308,2.55579064,143.56,143.5,3.48954353]
[1750730016513,6.9618,143.54,143.49,2.315]
[1750730016721,42.9218,143.54,143.49,2.315]
[1750730017115,6.962,143.53,143.5,6.9631]
[1750730017314,39.44954353,143.54,143.47,215.07162396]
[1750730017512,39.44954353,143.54,143.45,12.827575]
[1750730017513,3.48954353,143.52,143.45,12.827575]
[1750730017811,6.9638,143.5,143.44,3.48954353]
[1750730018015,35.96,143.5,143.44,16.31711853]
[1750730018222,35.96,143.5,143.46,6.9649]
[1750730018422,35.96,143.5,143.44,3.48954353]
[1750730018821,35.96,143.5,143.48,6.9641]
[1750730019523,35.96,143.5,143.49,6.9639]
[1750730021728,46.43164353,143.53,143.5,6.9633]
[1750730022131,35.98,143.53,143.46,3.48954353]
[1750730022330,35.98,143.53,143.48,3.48954353]
[1750730023128,35.98,143.53,143.52,6.9625]
[1750730025235,39.46954353,143.56,143.53,6.9619]
[1750730026633,39.46954353,143.56,143.54,6.9614]
[1750730027036,35.98,143.56,143.54,6.9614]
[1750730028130,35.98,143.56,143.55,6.961]
[1750730028333,35.98,143.56,143.5,3.48954353]
[1750730028637,35.98,143.56,143.47,222.77334979]
[1750730028638,6.9611,143.55,143.51,6.9626]
[1750730029029,3.48954353,143.54,143.51,6.9626]
[1750730029536,3.48954353,143.54,143.47,222.77334979]
[1750730029741,6.9624,143.53,143.47,222.77334979]
[1750730029946,39.46954353,143.52,143.48,6.964]
[1750730030334,39.46954353,143.52,143.47,215.80864979]
[1750730031743,6.9635,143.5,143.47,222.77334979]
[1750730034446,6.9635,143.5,143.47,6.9647]
[1750730038352,6.9631,143.51,143.47,6.9647]
[1750730039163,6.9635,143.5,143.46,6.9653]
[1750730041044,6.964,143.49,143.46,6.9653]
[1750730041251,6.964,143.49,143.43,38.2935]
[1750730041252,39.42954353,143.48,143.41,4.8397]
[1750730041544,35.94,143.48,143.41,8.32924353]
[1750730041946,3.48954353,143.47,143.41,4.8397]
[1750730042147,3.48954353,143.47,143.41,9.4112]
[1750730042543,6.9663,143.45,143.41,9.4112]
[1750730042960,35.94,143.44,143.41,9.4112]
[1750730043165,35.94,143.44,143.42,6.9672]
[1750730043462,35.94,143.44,143.41,2.4439]
[1750730043852,35.94,143.44,143.41,9.4114]
[1750730044659,35.94,143.44,143.42,6.9671]
[1750730045052,35.94,143.44,143.41,2.4439]
[1750730045248,35.94,143.47,143.43,6.9668]
[1750730045657,42.905,143.47,143.41,2.4439]
[1750730045858,35.94,143.47,143.44,6.966]
[1750730047159,42.905,143.47,143.44,6.966]
[1750730049257,35.94,143.47,143.44,6.966]
[1750730050162,42.9052,143.47,143.44,6.966]
[1750730051867,6.9662,143.45,143.41,4.6512]
[1750730052260,39.42954353,143.47,143.41,2.4439]
[1750730052464,6.9666,143.44,143.4,6.968]
[1750730053164,31.0,143.49,143.43,3.49504075]
[1750730053567,6.9644,143.48,143.44,6.9662]
[1750730053763,3.49504075,143.47,143.4,3.49504075]
[1750730053967,35.94,143.46,143.4,3.49504075]
[1750730054364,42.9057,143.46,143.42,6.9669]
[1750730054869,35.94,143.46,143.42,6.9669]
[1750730055371,6.9659,143.45,143.41,6.9676]
[1750730055869,35.94,143.46,143.4,3.49504075]
[1750730056259,35.94,143.46,143.38,41.84764075]
[1750730056861,35.94,143.46,143.4,6.9682]
[1750730056862,6.9665,143.44,143.4,6.9682]
[1750730057265,6.9665,143.44,143.38,41.84764075]
[1750730058574,6.966,143.45,143.38,41.84764075]
[1750730059370,6.966,143.45,143.38,38.3526]
[1750730059572,6.966,143.45,143.39,3.49504075]
[1750730059874,6.966,143.45,143.41,6.9675]
[1750730060077,42.9054,143.46,143.39,3.49504075]
[1750730060282,35.94,143.46,143.4,2.377]
[1750730060575,6.9661,143.45,143.41,6.9675]
[1750730061864,6.9664,143.44,143.41,6.9675]
[1750730062576,6.966,143.45,143.41,6.9675]
[1750730062777,6.966,143.45,143.42,6.9672]
[1750730063274,46.40054075,143.46,143.42,6.9672]
[1750730063475,39.43504075,143.46,143.42,6.9672]
[1750730064176,39.43504075,143.46,143.41,6.9676]
[1750730064572,6.9661,143.45,143.41,6.9676]
[1750730064772,39.43504075,143.46,143.4,9.3451]
[1750730065077,39.43504075,143.46,143.38,2.4126]
[1750730065276,6.9669,143.43,143.38,2.4126]
[1750730065481,6.9669,143.43,143.39,6.9684]
[1750730065874,6.9669,143.43,143.38,2.4126]
[1750730066680,6.9669,143.43,143.4,6.9683]
[1750730067774,6.9678,143.41,143.38,2.4126]
[1750730067979,39.43504075,143.42,143.36,2.3656]
[1750730068169,35.94,143.41,143.34,2.2322]
[1750730068376,35.94,143.41,143.37,6.9695]
[1750730068573,35.94,143.41,143.35,3.49504075]
[1750730068879,35.94,143.41,143.37,6.9693]
[1750730068880,42.9082,143.41,143.37,6.9693]
[1750730069780,42.9082,143.41,143.38,6.9692]
[1750730069981,6.9684,143.4,143.34,10.22438555]
[1750730070280,6.9684,143.4,143.36,6.9699]
[1750730071781,6.9689,143.39,143.35,6.9706]
[1750730074192,3.49868555,143.4,143.34,13.6968]
[1750730075182,6.9696,143.38,143.34,13.6968]
[1750730075387,6.9696,143.38,143.35,6.9705]
[1750730075586,3.49868555,143.4,143.35,6.9705]
[1750730075782,6.9691,143.39,143.35,6.9705]
[1750730078689,6.9691,143.39,143.36,6.9702]
[1750730079290,6.9691,143.39,143.35,6.9705]
[1750730079692,6.9694,143.38,143.35,6.9705]
[1750730080492,6.969,143.39,143.35,6.9705]
[1750730081693,6.969,143.39,143.36,6.9702]
[1750730081892,35.94,143.41,143.35,3.49868555]
[1750730082191,39.43868555,143.41,143.35,3.49868555]
[1750730082692,6.9685,143.4,143.36,6.97]
[1750730083897,6.9688,143.39,143.36,6.97]
[1750730084094,39.43868555,143.41,143.36,6.97]
[1750730084294,6.9684,143.4,143.36,6.97]
[1750730085190,46.40658555,143.41,143.37,6.9696]
[1750730086697,6.9683,143.4,143.37,6.9696]
[1750730087692,39.43868555,143.41,143.37,6.9696]
[1750730087693,46.40658555,143.41,143.37,6.9696]
[1750730090307,6.9683,143.4,143.37,6.9696]
[1750730091307,46.40668555,143.41,143.37,6.9696]
[1750730091902,46.40668555,143.41,143.38,6.9692]
[1750730092506,46.40668555,143.41,143.37,6.9696]
[1750730094308,6.9683,143.4,143.37,6.9696]
[1750730097607,42.908,143.41,143.37,6.9696]
[1750730097809,42.908,143.41,143.34,6.7257]
[1750730097810,42.908,143.41,143.38,6.9692]
[1750730099102,35.94,143.41,143.35,3.49909846]
[1750730099618,35.94,143.41,143.39,6.9685]
[1750730099907,35.94,143.41,143.35,3.49909846]
[1750730100108,35.94,143.41,143.38,6.969]
[1750730100311,35.94,143.41,143.35,3.49909846]
[1750730100610,35.94,143.41,143.4,6.9683]
[1750730100800,35.94,143.41,143.35,3.49909846]
[1750730103111,39.41909846,143.48,143.39,3.49909846]
[1750730103303,35.92,143.48,143.44,6.9659]
[1750730103908,6.9651,143.47,143.44,6.9659]
[1750730105506,42.8845,143.48,143.45,6.9657]
[1750730105707,35.92,143.48,143.41,3.49544014]
[1750730105903,35.92,143.48,143.43,3.49544014]
[1750730106105,35.92,143.48,143.46,6.9651]
[1750730106806,35.92,143.48,143.47,6.9649]
[1750730107013,35.92,143.48,143.43,3.49544014]
[1750730107511,46.37854014,143.51,143.43,3.49544014]
[1750730107812,39.41544014,143.51,143.43,3.49544014]
[1750730108014,6.9638,143.5,143.45,6.9655]
[1750730108200,39.41544014,143.51,143.45,6.9655]
[1750730108607,39.41544014,143.51,143.44,6.9661]
[1750730108811,3.49544014,143.49,143.43,3.49544014]
[1750730109005,3.49544014,143.5,143.41,5.82664014]
[1750730109205,6.965,143.47,143.43,6.9664]
[1750730109912,6.9654,143.46,143.43,6.9664]
[1750730112614,6.9651,143.47,143.43,6.9664]
[1750730113115,3.49544014,143.5,143.42,10.46254014]
[1750730113312,6.9657,143.46,143.42,10.46254014]
[1750730113514,6.9657,143.46,143.42,3.49544014]
[1750730114715,6.9657,143.46,143.43,6.9667]
[1750730118514,6.9651,143.47,143.43,6.9667]
[1750730119415,35.9,143.46,143.4,4.7307]
[1750730119620,39.39544014,143.46,143.4,2.4012]
[1750730119921,6.9667,143.44,143.4,6.968]
[1750730120212,35.9,143.46,143.39,3.49660523]
[1750730120719,42.8654,143.46,143.43,6.9667]
[1750730122619,35.9,143.46,143.41,3.49660523]
[1750730125522,36.70250523,143.49,143.41,39.39660523]
[1750730125523,66.9,143.49,143.41,39.39660523]
[1750730126219,6.9645,143.48,143.45,6.9654]
[1750730127428,70.39526425,143.49,143.41,35.9]
[1750730127919,3.49526425,143.47,143.42,6.967]
[1750730128219,3.49526425,143.47,143.41,35.9]
[1750730128613,6.9656,143.46,143.42,6.9671]
[1750730128815,3.49526425,143.47,143.38,39.35526425]
[1750730129122,10.46106425,143.45,143.41,6.9676]
[1750730129318,46.32106425,143.45,143.41,6.9676]
[1750730130925,39.35526425,143.45,143.4,6.9681]
[1750730131516,6.9665,143.44,143.4,6.9681]
[1750730131719,6.9665,143.44,143.41,6.9677]
[1750730132025,6.9644,143.48,143.42,3.49504248]
[1750730132225,6.9644,143.48,143.45,6.9657]
[1750730132428,39.35504248,143.5,143.45,6.9657]
[1750730132621,39.35504248,143.5,143.42,3.49504248]
[1750730133322,39.35504248,143.5,143.45,6.9656]
[1750730133511,39.35504248,143.5,143.42,3.49504248]
[1750730133713,39.35504248,143.5,143.43,2.2135]
[1750730133714,35.86,143.5,143.43,2.2135]
[1750730133919,35.86,143.5,143.43,4.4803]
[1750730134120,35.86,143.5,143.44,3.49504248]
[1750730134523,42.8231,143.51,143.47,6.9646]
[1750730135421,6.9635,143.5,143.47,6.9646]
[1750730136632,42.8231,143.51,143.48,6.9643]
[1750730137124,42.8231,143.51,143.44,3.49504248]
[1750730137530,42.8231,143.51,143.47,6.9647]
[1750730137731,35.86,143.51,143.44,3.49504248]
[1750730138023,35.86,143.51,143.43,4.4803]
[1750730138024,35.86,143.51,143.46,3.49504248]
[1750730138733,35.86,143.51,143.5,6.9634]
[1750730139121,10.45664248,143.54,143.5,6.9634]
[1750730139326,35.86,143.54,143.48,3.49504248]
[1750730140130,42.8216,143.54,143.48,3.49504248]
[1750730140523,42.8216,143.54,143.51,6.9628]
[1750730140724,35.86,143.54,143.48,3.49504248]
[1750730141332,35.86,143.54,143.52,6.9624]
[1750730143534,42.8215,143.54,143.51,6.9628]
[1750730146136,35.86,143.54,143.51,6.9628]
[1750730147538,35.86,143.54,143.52,6.9624]
[1750730147939,42.8215,143.54,143.48,3.49215673]
[1750730148238,35.86,143.54,143.51,6.9626]
[1750730148740,39.35215673,143.54,143.46,35.86]
[1750730148941,39.35215673,143.54,143.44,12.827575]
[1750730148942,3.49215673,143.52,143.44,3.49215673]
[1750730149139,6.9637,143.5,143.46,6.9649]
[1750730149445,42.8037,143.5,143.44,3.49215673]
[1750730149934,42.8037,143.5,143.46,6.965]
[1750730150438,42.8037,143.5,143.47,6.9648]
[1750730151741,35.84,143.5,143.48,6.9644]
[1750730152235,35.84,143.5,143.47,6.9648]
[1750730152538,42.8034,143.5,143.47,6.9648]
[1750730152736,35.84,143.53,143.46,3.49215673]
[1750730153331,35.84,143.53,143.51,6.9629]
[1750730154033,35.84,143.53,143.52,6.9624]
[1750730156845,6.964,143.55,143.52,6.9624]
[1750730157343,46.29275673,143.56,143.52,6.9624]
[1750730158344,6.9611,143.55,143.52,6.9624]
[1750730159245,6.9617,143.54,143.48,5.79675673]
[1750730159838,6.9612,143.55,143.51,6.9626]
[1750730160337,6.9615,143.54,143.51,6.9626]
[1750730160538,6.9615,143.54,143.5,6.9632]
[1750730160732,39.33215673,143.56,143.48,5.79675673]
[1750730160933,6.9618,143.54,143.48,5.79675673]
[1750730161137,39.33215673,143.56,143.48,5.79675673]